[Event "Early-Titled-Tuesday-Blitz-July-09-2024"]
[Site "Chess.com"]
[Date "2024.07.09"]
[Round "6"]
[White "Suleyman_Chess06"]
[Black "sirinbaba33"]
[Result "1/2-1/2"]
[WhiteElo "2735"]
[BlackElo "2575"]
[TimeControl "180+1"]
[EndTime "9:11:32 PDT"]
[Termination "Game drawn by stalemate"]

1. Nf3 {[%clk 0:03:00.9]} 1... d5 {[%clk 0:03:00.5]} 2. g3 {[%clk 0:03:01.2]}
2... Nf6 {[%clk 0:02:59.5]} 3. Bg2 {[%clk 0:03:01.4]} 3... e6 {[%clk 0:03:00.1]}
4. O-O {[%clk 0:03:01.8]} 4... Be7 {[%clk 0:03:00.1]} 5. d4 {[%clk 0:03:02.7]}
5... b5 {[%clk 0:03:00.1]} 6. c4 {[%clk 0:03:03.6]} 6... bxc4 {[%clk 0:03:00.3]}
7. Ne5 {[%clk 0:03:03.7]} 7... O-O {[%clk 0:02:58.7]} 8. Nxc4 {[%clk 0:03:03.8]}
8... c5 {[%clk 0:02:53.4]} 9. Ne5 {[%clk 0:03:00.7]} 9... Bb7 {[%clk 0:02:45.5]}
10. Nc3 {[%clk 0:02:59.4]} 10... cxd4 {[%clk 0:02:41.4]} 11. Qxd4 {[%clk
0:03:00.3]} 11... Nfd7 {[%clk 0:02:40.8]} 12. Bf4 {[%clk 0:02:57.9]} 12... Nxe5
{[%clk 0:02:40.4]} 13. Qxe5 {[%clk 0:02:53.4]} 13... Nc6 {[%clk 0:02:34.8]} 14.
Qh5 {[%clk 0:02:53.9]} 14... Na5 {[%clk 0:02:25.6]} 15. Rfd1 {[%clk 0:02:49.8]}
15... Qb6 {[%clk 0:02:23.2]} 16. b3 {[%clk 0:02:45.4]} 16... Rac8 {[%clk
0:02:15.9]} 17. Be5 {[%clk 0:02:41.2]} 17... Nc6 {[%clk 0:02:10.3]} 18. Na4
{[%clk 0:02:39.3]} 18... Qa6 {[%clk 0:02:09.9]} 19. Bc3 {[%clk 0:02:32.6]} 19...
Rfd8 {[%clk 0:02:01]} 20. Qg4 {[%clk 0:02:30.9]} 20... g6 {[%clk 0:01:53.3]} 21.
e3 {[%clk 0:02:26.3]} 21... Ba8 {[%clk 0:01:44.2]} 22. h4 {[%clk 0:02:25.9]}
22... h5 {[%clk 0:01:43.5]} 23. Qf4 {[%clk 0:02:25.8]} 23... e5 {[%clk
0:01:23.6]} 24. Bxe5 {[%clk 0:02:23.3]} 24... Nxe5 {[%clk 0:01:24.5]} 25. Qxe5
{[%clk 0:02:24]} 25... Bf6 {[%clk 0:01:24.7]} 26. Qf4 {[%clk 0:02:16.7]} 26...
Bxa1 {[%clk 0:01:24.8]} 27. Rxa1 {[%clk 0:02:17.6]} 27... Qe2 {[%clk 0:01:24.9]}
28. Bf3 {[%clk 0:02:13]} 28... Qd2 {[%clk 0:01:22]} 29. Qd4 {[%clk 0:01:55]}
29... Qxd4 {[%clk 0:01:17.2]} 30. exd4 {[%clk 0:01:55.9]} 30... Rc2 {[%clk
0:01:17.6]} 31. Nc5 {[%clk 0:01:49.6]} 31... Rd2 {[%clk 0:01:17.8]} 32. Rd1
{[%clk 0:01:49.9]} 32... Rxa2 {[%clk 0:01:18]} 33. Re1 {[%clk 0:01:46.4]} 33...
Rd2 {[%clk 0:01:16.1]} 34. Re7 {[%clk 0:01:47]} 34... a5 {[%clk 0:01:10.4]} 35.
Ra7 {[%clk 0:01:47]} 35... Rxd4 {[%clk 0:01:08.8]} 36. Rxa5 {[%clk 0:01:47.6]}
36... Rb4 {[%clk 0:01:09.4]} 37. Kf1 {[%clk 0:01:42.2]} 37... Bc6 {[%clk
0:01:09]} 38. Ke2 {[%clk 0:01:36.8]} 38... Rb5 {[%clk 0:01:05.7]} 39. Rxb5
{[%clk 0:01:34.3]} 39... Bxb5+ {[%clk 0:01:06.6]} 40. Kd2 {[%clk 0:01:34.3]}
40... d4 {[%clk 0:01:06.7]} 41. Be4 {[%clk 0:01:29]} 41... Kg7 {[%clk
0:01:04.5]} 42. b4 {[%clk 0:01:28.7]} 42... Kf6 {[%clk 0:01:03.8]} 43. Bd3
{[%clk 0:01:27.1]} 43... Bxd3 {[%clk 0:01:01.6]} 44. Kxd3 {[%clk 0:01:28]} 44...
Ke5 {[%clk 0:01:02]} 45. b5 {[%clk 0:01:28.6]} 45... Kd5 {[%clk 0:00:59.3]} 46.
Nb3 {[%clk 0:01:28.2]} 46... Ra8 {[%clk 0:00:58.2]} 47. b6 {[%clk 0:01:24.5]}
47... Ra3 {[%clk 0:00:54.6]} 48. Kc2 {[%clk 0:01:24.9]} 48... Ra6 {[%clk
0:00:50.9]} 49. Kd3 {[%clk 0:01:23.7]} 49... Rxb6 {[%clk 0:00:36.6]} 50. Nxd4
{[%clk 0:01:23.5]} 50... Ra6 {[%clk 0:00:37.3]} 51. Nc2 {[%clk 0:01:21.5]} 51...
Ke5 {[%clk 0:00:33.6]} 52. Ke3 {[%clk 0:01:21.7]} 52... Rb6 {[%clk 0:00:31.9]}
53. Nd4 {[%clk 0:01:20.4]} 53... Ra6 {[%clk 0:00:30.6]} 54. Nf3+ {[%clk
0:00:53]} 54... Kf5 {[%clk 0:00:30.8]} 55. Ke2 {[%clk 0:00:53.2]} 55... Ra2+
{[%clk 0:00:26.8]} 56. Kf1 {[%clk 0:00:53.5]} 56... f6 {[%clk 0:00:25.2]} 57.
Kg2 {[%clk 0:00:49.9]} 57... Ra3 {[%clk 0:00:23.5]} 58. Nd4+ {[%clk 0:00:48.3]}
58... Ke5 {[%clk 0:00:22.8]} 59. Ne2 {[%clk 0:00:44.8]} 59... Ra2 {[%clk
0:00:20]} 60. Nf4 {[%clk 0:00:45]} 60... Kf5 {[%clk 0:00:20.5]} 61. Nd5 {[%clk
0:00:44]} 61... Rd2 {[%clk 0:00:19.8]} 62. Nf4 {[%clk 0:00:39.7]} 62... Rd8
{[%clk 0:00:18.1]} 63. Kf3 {[%clk 0:00:39.2]} 63... Re8 {[%clk 0:00:17.7]} 64.
Nd5 {[%clk 0:00:36.3]} 64... g5 {[%clk 0:00:14.6]} 65. Ne3+ {[%clk 0:00:36.2]}
65... Kg6 {[%clk 0:00:14.6]} 66. Kg2 {[%clk 0:00:27.9]} 66... g4 {[%clk
0:00:13.8]} 67. Kf1 {[%clk 0:00:27.6]} 67... f5 {[%clk 0:00:13.5]} 68. Nd5
{[%clk 0:00:27.1]} 68... Rh8 {[%clk 0:00:11.7]} 69. Ke2 {[%clk 0:00:26.5]} 69...
Kf7 {[%clk 0:00:11.9]} 70. Nf4 {[%clk 0:00:25.6]} 70... Kf6 {[%clk 0:00:12.2]}
71. Kd3 {[%clk 0:00:24.3]} 71... Rh7 {[%clk 0:00:12.5]} 72. Ke3 {[%clk
0:00:24.1]} 72... Ke5 {[%clk 0:00:12.6]} 73. Nd3+ {[%clk 0:00:23.9]} 73... Kd5
{[%clk 0:00:11.7]} 74. Kf4 {[%clk 0:00:24]} 74... Kd4 {[%clk 0:00:12.2]} 75. Ne5
{[%clk 0:00:23.7]} 75... Rh8 {[%clk 0:00:08.8]} 76. Ng6 {[%clk 0:00:22.1]} 76...
Rh7 {[%clk 0:00:07.1]} 77. Kxf5 {[%clk 0:00:20.7]} 77... Rf7+ {[%clk 0:00:07.5]}
78. Kg5 {[%clk 0:00:21.3]} 78... Rxf2 {[%clk 0:00:08.2]} 79. Kxh5 {[%clk
0:00:22]} 79... Kd5 {[%clk 0:00:05.3]} 80. Kxg4 {[%clk 0:00:22]} 80... Ke6
{[%clk 0:00:05.9]} 81. Kg5 {[%clk 0:00:21.8]} 81... Rf5+ {[%clk 0:00:04.9]} 82.
Kh6 {[%clk 0:00:21.3]} 82... Kf7 {[%clk 0:00:04.9]} 83. g4 {[%clk 0:00:21.4]}
83... Ra5 {[%clk 0:00:04.1]} 84. h5 {[%clk 0:00:20.4]} 84... Kg8 {[%clk
0:00:04]} 85. Ne7+ {[%clk 0:00:20.1]} 85... Kf7 {[%clk 0:00:03.6]} 86. Ng6
{[%clk 0:00:20.4]} 86... Kg8 {[%clk 0:00:03.5]} 87. Nh4 {[%clk 0:00:19.1]} 87...
Rb5 {[%clk 0:00:03.5]} 88. Nf5 {[%clk 0:00:19]} 88... Ra5 {[%clk 0:00:03.7]} 89.
Kg5 {[%clk 0:00:19.5]} 89... Kf7 {[%clk 0:00:03.8]} 90. h6 {[%clk 0:00:20]}
90... Kg8 {[%clk 0:00:04.2]} 91. Kg6 {[%clk 0:00:20.3]} 91... Ra6+ {[%clk
0:00:04.5]} 92. Kh5 {[%clk 0:00:20.6]} 92... Kh7 {[%clk 0:00:04.9]} 93. g5
{[%clk 0:00:20.7]} 93... Kg8 {[%clk 0:00:05.4]} 94. g6 {[%clk 0:00:21]} 94...
Ra5 {[%clk 0:00:05.9]} 95. Kg5 {[%clk 0:00:21.3]} 95... Rb5 {[%clk 0:00:06.3]}
96. h7+ {[%clk 0:00:21.7]} 96... Kh8 {[%clk 0:00:06.9]} 97. Kh6 {[%clk
0:00:22.1]} 97... Rb6 {[%clk 0:00:06.5]} 98. Nh4 {[%clk 0:00:13]} 98... Re6
{[%clk 0:00:06.5]} 99. Kg5 {[%clk 0:00:13.3]} 99... Rb6 {[%clk 0:00:06.6]} 100.
Kf5 {[%clk 0:00:12.8]} 100... Ra6 {[%clk 0:00:06.6]} 101. Kg5 {[%clk 0:00:12.5]}
101... Rb6 {[%clk 0:00:07.1]} 102. Kh5 {[%clk 0:00:10.6]} 102... Rc6 {[%clk
0:00:07.3]} 103. Nf3 {[%clk 0:00:08.2]} 103... Rxg6 {[%clk 0:00:07.3]} 104. Kxg6
{[%clk 0:00:07.2]} 1/2-1/2

[Event "Early-Titled-Tuesday-Blitz-July-09-2024"]
[Site "Chess.com"]
[Date "2024.07.09"]
[Round "7"]
[White "GelmanAlexander"]
[Black "tgpgoat"]
[Result "1-0"]
[WhiteElo "2722"]
[BlackElo "2520"]
[TimeControl "180+1"]
[EndTime "9:14:52 PDT"]
[Termination "GelmanAlexander won by resignation"]

1. c4 {[%clk 0:03:00.9]} 1... Nf6 {[%clk 0:02:59.8]} 2. d3 {[%clk 0:03:01.2]}
2... e6 {[%clk 0:03:00.4]} 3. e3 {[%clk 0:03:01.5]} 3... d5 {[%clk 0:03:00.9]}
4. Nd2 {[%clk 0:03:01.9]} 4... Be7 {[%clk 0:03:00.7]} 5. Ngf3 {[%clk 0:03:02.1]}
5... O-O {[%clk 0:03:00.6]} 6. b3 {[%clk 0:03:02.8]} 6... c5 {[%clk 0:02:59.9]}
7. Bb2 {[%clk 0:03:03.4]} 7... Nc6 {[%clk 0:03:00.1]} 8. a3 {[%clk 0:03:04]}
8... b6 {[%clk 0:03:00.2]} 9. Rg1 {[%clk 0:03:03.7]} 9... Bb7 {[%clk 0:03:00.3]}
10. g4 {[%clk 0:03:04]} 10... Nd7 {[%clk 0:03:00.2]} 11. g5 {[%clk 0:03:04.3]}
11... Bd6 {[%clk 0:03:00.1]} 12. h4 {[%clk 0:03:04.7]} 12... Nde5 {[%clk
0:02:59.8]} 13. h5 {[%clk 0:02:57.9]} 13... Nxf3+ {[%clk 0:02:59.3]} 14. Nxf3
{[%clk 0:02:57.8]} 14... Ne5 {[%clk 0:02:59.2]} 15. Nxe5 {[%clk 0:02:57.5]}
15... Qc7 {[%clk 0:02:53.8]} 16. f4 {[%clk 0:02:54.3]} 16... dxc4 {[%clk
0:02:53.6]} 17. dxc4 {[%clk 0:02:51.7]} 17... Rfd8 {[%clk 0:02:52.8]} 18. Qc2
{[%clk 0:02:52.1]} 18... Bxe5 {[%clk 0:02:42.1]} 19. Bxe5 {[%clk 0:02:51.4]}
19... Qc6 {[%clk 0:02:42.2]} 20. Bg2 {[%clk 0:02:45.8]} 20... Qd7 {[%clk
0:02:41.9]} 21. Bxb7 {[%clk 0:02:45.6]} 21... Qxb7 {[%clk 0:02:42.1]} 22. Kf2
{[%clk 0:02:39.5]} 22... a5 {[%clk 0:02:33.6]} 23. Rad1 {[%clk 0:02:39]} 23...
a4 {[%clk 0:02:34]} 24. bxa4 {[%clk 0:02:39.2]} 24... Qc6 {[%clk 0:02:28.1]} 25.
h6 {[%clk 0:02:36.6]} 25... g6 {[%clk 0:02:26.7]} 26. Bb2 {[%clk 0:02:36.2]}
26... f5 {[%clk 0:02:21.8]} 27. Qc3 {[%clk 0:02:34.2]} 1-0

[Event "Early-Titled-Tuesday-Blitz-July-09-2024"]
[Site "Chess.com"]
[Date "2024.07.09"]
[Round "7"]
[White "JueIes"]
[Black "Sasha_Solovev_777"]
[Result "1-0"]
[WhiteElo "2550"]
[BlackElo "2308"]
[TimeControl "180+1"]
[EndTime "9:15:57 PDT"]
[Termination "JueIes won by resignation"]

1. d4 {[%clk 0:03:00.9]} 1... Nf6 {[%clk 0:02:59.4]} 2. Bg5 {[%clk 0:03:00.3]}
2... d5 {[%clk 0:02:58.7]} 3. Nd2 {[%clk 0:02:59.7]} 3... c5 {[%clk 0:02:58.3]}
4. e3 {[%clk 0:03:00.1]} 4... Nc6 {[%clk 0:02:57.7]} 5. c3 {[%clk 0:03:00.2]}
5... e6 {[%clk 0:02:56.9]} 6. Ngf3 {[%clk 0:03:00.2]} 6... b6 {[%clk 0:02:53.6]}
7. Bd3 {[%clk 0:02:59.2]} 7... Be7 {[%clk 0:02:53.4]} 8. O-O {[%clk 0:02:57.5]}
8... O-O {[%clk 0:02:53]} 9. Ne5 {[%clk 0:02:57.6]} 9... Nxe5 {[%clk 0:02:47.9]}
10. dxe5 {[%clk 0:02:57.3]} 10... Nd7 {[%clk 0:02:46.8]} 11. Bxe7 {[%clk
0:02:57.4]} 11... Qxe7 {[%clk 0:02:47.7]} 12. f4 {[%clk 0:02:57.6]} 12... f5
{[%clk 0:02:41.1]} 13. exf6 {[%clk 0:02:41.5]} 13... Qxf6 {[%clk 0:02:41]} 14.
e4 {[%clk 0:02:39.5]} 14... Bb7 {[%clk 0:02:29.2]} 15. e5 {[%clk 0:02:39.4]}
15... Qh6 {[%clk 0:02:27.6]} 16. g3 {[%clk 0:02:13.9]} 16... Rf7 {[%clk
0:02:07.8]} 17. Nf3 {[%clk 0:02:10.7]} 17... Raf8 {[%clk 0:01:55.8]} 18. Ng5
{[%clk 0:02:10.1]} 18... Re7 {[%clk 0:01:51.5]} 19. Bxh7+ {[%clk 0:02:08.8]}
19... Kh8 {[%clk 0:01:51.4]} 20. Bc2 {[%clk 0:02:07.9]} 20... Nxe5 {[%clk
0:01:50]} 21. fxe5 {[%clk 0:01:57.2]} 21... Rxf1+ {[%clk 0:01:48.7]} 22. Qxf1
{[%clk 0:01:57]} 1-0

[Event "Early-Titled-Tuesday-Blitz-July-09-2024"]
[Site "Chess.com"]
[Date "2024.07.09"]
[Round "7"]
[White "Juicy_Fork"]
[Black "CrimeFightingSpider07"]
[Result "0-1"]
[WhiteElo "2449"]
[BlackElo "2614"]
[TimeControl "180+1"]
[EndTime "9:16:06 PDT"]
[Termination "CrimeFightingSpider07 won by resignation"]

1. e4 {[%clk 0:03:00.9]} 1... c5 {[%clk 0:02:57.7]} 2. Nf3 {[%clk 0:02:57.6]}
2... e6 {[%clk 0:02:57.6]} 3. d4 {[%clk 0:02:56.7]} 3... cxd4 {[%clk 0:02:58.5]}
4. Nxd4 {[%clk 0:02:55.9]} 4... a6 {[%clk 0:02:58.2]} 5. c4 {[%clk 0:02:54.3]}
5... Nf6 {[%clk 0:02:57.7]} 6. Nc3 {[%clk 0:02:54.1]} 6... Bb4 {[%clk
0:02:56.4]} 7. Qd3 {[%clk 0:02:49.4]} 7... Nc6 {[%clk 0:02:45.1]} 8. Nc2 {[%clk
0:02:41.3]} 8... Bxc3+ {[%clk 0:02:37.7]} 9. Qxc3 {[%clk 0:02:41.6]} 9... O-O
{[%clk 0:02:35.6]} 10. Bd3 {[%clk 0:02:39.9]} 10... d5 {[%clk 0:02:34.4]} 11.
cxd5 {[%clk 0:02:37.7]} 11... exd5 {[%clk 0:02:31.8]} 12. exd5 {[%clk
0:02:33.6]} 12... Nxd5 {[%clk 0:02:30.3]} 13. Qc4 {[%clk 0:02:23.5]} 13... Ne5
{[%clk 0:02:26.8]} 14. Qe4 {[%clk 0:02:18.7]} 14... Nxd3+ {[%clk 0:02:19]} 15.
Qxd3 {[%clk 0:02:19.6]} 15... Re8+ {[%clk 0:02:15.3]} 16. Kf1 {[%clk 0:02:06.2]}
16... Ne3+ {[%clk 0:02:14.9]} 17. Qxe3 {[%clk 0:01:58.6]} 17... Rxe3 {[%clk
0:02:12.5]} 18. Nxe3 {[%clk 0:01:59.5]} 18... Qd3+ {[%clk 0:02:12.2]} 19. Ke1
{[%clk 0:01:57.7]} 19... Be6 {[%clk 0:02:02.4]} 20. Bd2 {[%clk 0:01:54.9]} 20...
Re8 {[%clk 0:01:51.7]} 21. Bc3 {[%clk 0:01:49.9]} 21... Bc4 {[%clk 0:01:50.6]}
0-1

[Event "Early-Titled-Tuesday-Blitz-July-09-2024"]
[Site "Chess.com"]
[Date "2024.07.09"]
[Round "7"]
[White "BaylavChess"]
[Black "gau248"]
[Result "0-1"]
[WhiteElo "2429"]
[BlackElo "2616"]
[TimeControl "180+1"]
[EndTime "9:16:35 PDT"]
[Termination "gau248 won by resignation"]

1. Nf3 {[%clk 0:03:00.9]} 1... Nf6 {[%clk 0:02:59.9]} 2. g3 {[%clk 0:02:56.6]}
2... c5 {[%clk 0:02:59.9]} 3. Bg2 {[%clk 0:02:56]} 3... g6 {[%clk 0:02:58.7]} 4.
c4 {[%clk 0:02:50.7]} 4... Bg7 {[%clk 0:02:56.7]} 5. O-O {[%clk 0:02:49.9]} 5...
d5 {[%clk 0:02:56.1]} 6. cxd5 {[%clk 0:02:50.1]} 6... Nxd5 {[%clk 0:02:57]} 7.
Nc3 {[%clk 0:02:48.7]} 7... O-O {[%clk 0:02:57]} 8. Qc2 {[%clk 0:02:31.5]} 8...
Nb4 {[%clk 0:02:56.2]} 9. Qd1 {[%clk 0:02:31]} 9... Be6 {[%clk 0:02:53.4]} 10.
d3 {[%clk 0:02:28]} 10... N8c6 {[%clk 0:02:52.5]} 11. a3 {[%clk 0:02:27.2]}
11... Nd5 {[%clk 0:02:52.1]} 12. Bd2 {[%clk 0:02:19.2]} 12... Rc8 {[%clk
0:02:52]} 13. h4 {[%clk 0:02:18.2]} 13... Nd4 {[%clk 0:02:50.9]} 14. Ng5 {[%clk
0:02:17.9]} 14... Nxc3 {[%clk 0:02:50]} 15. Bxc3 {[%clk 0:02:00]} 15... Bd5
{[%clk 0:02:49.5]} 16. e3 {[%clk 0:01:47.8]} 16... Bxg2 {[%clk 0:02:48.6]} 17.
Kxg2 {[%clk 0:01:48.7]} 17... Qd5+ {[%clk 0:02:46.7]} 18. Kh2 {[%clk 0:01:39.2]}
18... Nc6 {[%clk 0:02:35.5]} 19. Bxg7 {[%clk 0:01:35.8]} 19... Kxg7 {[%clk
0:02:36.4]} 20. Qc2 {[%clk 0:01:35.3]} 20... Rfd8 {[%clk 0:02:35.9]} 21. Qc3+
{[%clk 0:01:34]} 21... f6 {[%clk 0:02:36.2]} 22. Rad1 {[%clk 0:01:28.7]} 22...
Ne5 {[%clk 0:02:35.4]} 23. Ne4 {[%clk 0:01:22.5]} 23... c4 {[%clk 0:02:31.1]}
24. f4 {[%clk 0:00:57.7]} 24... Ng4+ {[%clk 0:02:28]} 25. Kh3 {[%clk 0:00:42.8]}
25... Nxe3 {[%clk 0:02:27.4]} 0-1

[Event "Early-Titled-Tuesday-Blitz-July-09-2024"]
[Site "Chess.com"]
[Date "2024.07.09"]
[Round "7"]
[White "Fractingale"]
[Black "chenrip"]
[Result "1-0"]
[WhiteElo "2091"]
[BlackElo "2403"]
[TimeControl "180+1"]
[EndTime "9:16:36 PDT"]
[Termination "Fractingale won on time"]

1. c4 {[%clk 0:03:00.9]} 1... Nf6 {[%clk 0:02:54.5]} 2. Nc3 {[%clk 0:03:00.9]}
2... e6 {[%clk 0:02:54.6]} 3. e4 {[%clk 0:02:58.7]} 3... d6 {[%clk 0:02:52.3]}
4. g3 {[%clk 0:02:56.7]} 4... b6 {[%clk 0:02:52.3]} 5. Bg2 {[%clk 0:02:56.6]}
5... Bb7 {[%clk 0:02:52.9]} 6. Nge2 {[%clk 0:02:56.6]} 6... Nbd7 {[%clk
0:02:53.1]} 7. O-O {[%clk 0:02:56.1]} 7... e5 {[%clk 0:02:53.3]} 8. d3 {[%clk
0:02:54.2]} 8... Be7 {[%clk 0:02:53.6]} 9. h3 {[%clk 0:02:52.6]} 9... O-O {[%clk
0:02:53]} 10. Be3 {[%clk 0:02:44.8]} 10... h6 {[%clk 0:02:52.7]} 11. f4 {[%clk
0:02:43.2]} 11... Nh7 {[%clk 0:02:48.8]} 12. b4 {[%clk 0:02:35.7]} 1-0

[Event "Early-Titled-Tuesday-Blitz-July-09-2024"]
[Site "Chess.com"]
[Date "2024.07.09"]
[Round "7"]
[White "luggevoila"]
[Black "masterofpuppets2"]
[Result "0-1"]
[WhiteElo "2319"]
[BlackElo "2473"]
[TimeControl "180+1"]
[EndTime "9:16:54 PDT"]
[Termination "masterofpuppets2 won by resignation"]

1. e4 {[%clk 0:03:00.9]} 1... c6 {[%clk 0:03:00.2]} 2. d4 {[%clk 0:03:00.8]}
2... d5 {[%clk 0:03:01.1]} 3. e5 {[%clk 0:03:00.1]} 3... Bf5 {[%clk 0:03:01.1]}
4. Nf3 {[%clk 0:03:00.6]} 4... e6 {[%clk 0:03:01.3]} 5. Be2 {[%clk 0:03:01.2]}
5... Ne7 {[%clk 0:03:01.9]} 6. O-O {[%clk 0:03:01]} 6... Ng6 {[%clk 0:03:01.9]}
7. c3 {[%clk 0:02:59.2]} 7... Nd7 {[%clk 0:03:00.6]} 8. h3 {[%clk 0:02:37.5]}
8... f6 {[%clk 0:02:59.1]} 9. exf6 {[%clk 0:02:05.5]} 9... Qxf6 {[%clk 0:03:00]}
10. Bg5 {[%clk 0:02:00.8]} 10... Qf7 {[%clk 0:02:59.8]} 11. Nbd2 {[%clk
0:02:00.8]} 11... Bd6 {[%clk 0:02:58.8]} 12. Re1 {[%clk 0:01:52.4]} 12... O-O
{[%clk 0:02:58.3]} 13. Nf1 {[%clk 0:01:49.2]} 13... e5 {[%clk 0:02:55.1]} 14.
dxe5 {[%clk 0:01:33.6]} 14... Ndxe5 {[%clk 0:02:56]} 15. Ng3 {[%clk 0:01:30.7]}
15... Nxf3+ {[%clk 0:02:45.7]} 16. Bxf3 {[%clk 0:01:31.6]} 16... Bxh3 {[%clk
0:02:45.9]} 17. c4 {[%clk 0:01:16.3]} 17... h6 {[%clk 0:02:36.7]} 18. Be3 {[%clk
0:00:46.4]} 18... Nh4 {[%clk 0:02:28]} 19. Bh5 {[%clk 0:00:39.9]} 19... g6
{[%clk 0:02:27.5]} 20. Bg4 {[%clk 0:00:32.3]} 20... Bxg2 {[%clk 0:02:22.9]} 21.
cxd5 {[%clk 0:00:24.8]} 21... Bxd5 {[%clk 0:02:22.2]} 0-1

[Event "Early-Titled-Tuesday-Blitz-July-09-2024"]
[Site "Chess.com"]
[Date "2024.07.09"]
[Round "7"]
[White "DFeco"]
[Black "talaicito"]
[Result "0-1"]
[WhiteElo "2438"]
[BlackElo "2355"]
[TimeControl "180+1"]
[EndTime "9:17:09 PDT"]
[Termination "talaicito won by resignation"]

1. d4 {[%clk 0:03:00.9]} 1... e6 {[%clk 0:02:56.9]} 2. Nf3 {[%clk 0:03:00.7]}
2... f5 {[%clk 0:02:57.2]} 3. c4 {[%clk 0:02:57.8]} 3... Nf6 {[%clk 0:02:57.6]}
4. Nc3 {[%clk 0:02:57.8]} 4... Bb4 {[%clk 0:02:57.8]} 5. Bd2 {[%clk 0:02:57.6]}
5... O-O {[%clk 0:02:57.9]} 6. e3 {[%clk 0:02:55.8]} 6... d6 {[%clk 0:02:56.8]}
7. Bd3 {[%clk 0:02:55.3]} 7... Nc6 {[%clk 0:02:43]} 8. O-O {[%clk 0:02:54.5]}
8... e5 {[%clk 0:02:40.1]} 9. d5 {[%clk 0:02:50.6]} 9... Nb8 {[%clk 0:02:34.9]}
10. e4 {[%clk 0:02:50.1]} 10... Bxc3 {[%clk 0:02:32.2]} 11. Bxc3 {[%clk
0:02:49]} 11... fxe4 {[%clk 0:02:32.1]} 12. Bc2 {[%clk 0:02:43.2]} 12... exf3
{[%clk 0:02:25.3]} 13. Qxf3 {[%clk 0:02:44.1]} 13... a5 {[%clk 0:02:10]} 14. Qg3
{[%clk 0:02:40.2]} 14... Nh5 {[%clk 0:01:55.8]} 15. Qd3 {[%clk 0:02:18.6]} 15...
Bf5 {[%clk 0:01:53]} 16. Qd2 {[%clk 0:02:18.1]} 16... Bxc2 {[%clk 0:01:51.5]}
17. Qxc2 {[%clk 0:02:18.3]} 17... b6 {[%clk 0:01:46.9]} 18. g3 {[%clk
0:02:17.5]} 18... Nd7 {[%clk 0:01:41.8]} 19. b3 {[%clk 0:02:05.8]} 19... Qg5
{[%clk 0:01:40.6]} 20. h3 {[%clk 0:01:56.9]} 20... Nxg3 {[%clk 0:01:36.2]} 21.
fxg3 {[%clk 0:01:54.5]} 21... Qxg3+ {[%clk 0:01:36.4]} 22. Kh1 {[%clk
0:01:54.9]} 22... Qxh3+ {[%clk 0:01:34.9]} 23. Kg1 {[%clk 0:01:55.1]} 23... Qg3+
{[%clk 0:01:31]} 24. Kh1 {[%clk 0:01:55.1]} 24... Nc5 {[%clk 0:01:26.4]} 25. Bb2
{[%clk 0:01:48.7]} 25... Nd3 {[%clk 0:01:19.3]} 0-1

[Event "Early-Titled-Tuesday-Blitz-July-09-2024"]
[Site "Chess.com"]
[Date "2024.07.09"]
[Round "7"]
[White "GMAneta"]
[Black "Radislav_Atanasov"]
[Result "1-0"]
[WhiteElo "2642"]
[BlackElo "2431"]
[TimeControl "180+1"]
[EndTime "9:17:26 PDT"]
[Termination "GMAneta won by resignation"]

1. d4 {[%clk 0:03:00.9]} 1... Nf6 {[%clk 0:02:57.8]} 2. Nf3 {[%clk 0:02:59.9]}
2... c5 {[%clk 0:02:56.3]} 3. d5 {[%clk 0:02:58.8]} 3... e6 {[%clk 0:02:56]} 4.
c4 {[%clk 0:02:57.8]} 4... exd5 {[%clk 0:02:55.7]} 5. cxd5 {[%clk 0:02:57.9]}
5... d6 {[%clk 0:02:56.6]} 6. Nc3 {[%clk 0:02:56.8]} 6... g6 {[%clk 0:02:56.7]}
7. Nd2 {[%clk 0:02:52.5]} 7... Nbd7 {[%clk 0:02:53.3]} 8. Nc4 {[%clk 0:02:44.2]}
8... Nb6 {[%clk 0:02:52.7]} 9. e4 {[%clk 0:02:42.3]} 9... Nxc4 {[%clk
0:02:51.3]} 10. Bxc4 {[%clk 0:02:41.3]} 10... Bg7 {[%clk 0:02:51.4]} 11. h3
{[%clk 0:02:39.4]} 11... O-O {[%clk 0:02:51.5]} 12. O-O {[%clk 0:02:38.8]} 12...
Re8 {[%clk 0:02:52]} 13. Re1 {[%clk 0:02:38.6]} 13... a6 {[%clk 0:02:49.5]} 14.
a4 {[%clk 0:02:37.8]} 14... Rb8 {[%clk 0:02:38.5]} 15. Bf4 {[%clk 0:02:33.8]}
15... Qc7 {[%clk 0:02:33.6]} 16. Qd2 {[%clk 0:02:27.2]} 16... Bd7 {[%clk
0:02:31.1]} 17. e5 {[%clk 0:02:24.6]} 17... dxe5 {[%clk 0:02:29.2]} 18. d6
{[%clk 0:02:24.3]} 18... Qa5 {[%clk 0:02:21.2]} 19. Bxe5 {[%clk 0:02:23.8]}
19... Qb4 {[%clk 0:02:09.8]} 20. Qf4 {[%clk 0:02:20.5]} 20... Nh5 {[%clk
0:02:05]} 21. Qxf7+ {[%clk 0:02:19.7]} 21... Kh8 {[%clk 0:02:02.2]} 22. Bxg7+
{[%clk 0:02:19.7]} 22... Nxg7 {[%clk 0:02:00.7]} 23. Qxd7 {[%clk 0:02:17.2]}
23... Qxc4 {[%clk 0:01:58.7]} 24. Rxe8+ {[%clk 0:02:13.9]} 24... Rxe8 {[%clk
0:01:58.2]} 25. Qxb7 {[%clk 0:02:13.7]} 25... Qd4 {[%clk 0:01:44.8]} 26. Rd1
{[%clk 0:01:36.6]} 26... Qf6 {[%clk 0:01:44.2]} 27. d7 {[%clk 0:01:33.2]} 27...
Rf8 {[%clk 0:01:44.1]} 28. Ne4 {[%clk 0:01:31.2]} 28... Qh4 {[%clk 0:01:35.7]}
29. g3 {[%clk 0:01:27.1]} 29... Qe7 {[%clk 0:01:28.3]} 30. d8=Q {[%clk 0:01:22]}
1-0

[Event "Early-Titled-Tuesday-Blitz-July-09-2024"]
[Site "Chess.com"]
[Date "2024.07.09"]
[Round "7"]
[White "j_coca"]
[Black "manitodeplomo"]
[Result "0-1"]
[WhiteElo "2417"]
[BlackElo "2599"]
[TimeControl "180+1"]
[EndTime "9:17:29 PDT"]
[Termination "manitodeplomo won by resignation"]

1. f4 {[%clk 0:02:54.3]} 1... g6 {[%clk 0:02:57.4]} 2. Nf3 {[%clk 0:02:54.3]}
2... Bg7 {[%clk 0:02:58.3]} 3. e3 {[%clk 0:02:54.7]} 3... c5 {[%clk 0:02:58.3]}
4. d4 {[%clk 0:02:55.1]} 4... Nf6 {[%clk 0:02:59.1]} 5. c3 {[%clk 0:02:55.1]}
5... O-O {[%clk 0:02:59.8]} 6. Bd3 {[%clk 0:02:55.1]} 6... d6 {[%clk 0:03:00.2]}
7. O-O {[%clk 0:02:55.2]} 7... Nc6 {[%clk 0:03:00.7]} 8. Nbd2 {[%clk 0:02:55.2]}
8... e5 {[%clk 0:02:59.7]} 9. dxc5 {[%clk 0:02:52.8]} 9... dxc5 {[%clk
0:02:59.4]} 10. Qc2 {[%clk 0:02:53.2]} 10... Nd5 {[%clk 0:02:46.6]} 11. Re1
{[%clk 0:02:46.2]} 11... Ndb4 {[%clk 0:02:38.6]} 12. cxb4 {[%clk 0:02:40.6]}
12... Nxb4 {[%clk 0:02:38.9]} 13. Qxc5 {[%clk 0:02:41.2]} 13... Nxd3 {[%clk
0:02:39.3]} 14. Qc2 {[%clk 0:02:37.4]} 14... Nxe1 {[%clk 0:02:38.8]} 15. Nxe1
{[%clk 0:02:38.3]} 15... exf4 {[%clk 0:02:39.1]} 16. exf4 {[%clk 0:02:38.4]}
16... Bf5 {[%clk 0:02:39]} 17. Qb3 {[%clk 0:02:37.1]} 17... Qd4+ {[%clk
0:02:26.7]} 18. Kh1 {[%clk 0:02:36.8]} 18... Rfe8 {[%clk 0:02:26.1]} 19. Ndf3
{[%clk 0:02:35.3]} 19... Qf2 {[%clk 0:02:23.1]} 20. Bd2 {[%clk 0:02:34]} 20...
Re2 {[%clk 0:02:13.6]} 21. Bc3 {[%clk 0:02:32.7]} 21... Rae8 {[%clk 0:02:09.1]}
22. h3 {[%clk 0:02:26.9]} 22... Bxc3 {[%clk 0:01:13.3]} 23. Qxc3 {[%clk
0:02:23.3]} 23... R8e3 {[%clk 0:00:34.3]} 24. Qb4 {[%clk 0:01:50.5]} 24... Rxf3
{[%clk 0:00:29]} 0-1